bitfinex/quotes_ETHUSD_20250507
["timestamp","ask_amount","ask_price","bid_price","bid_amount"]
[1746647039629,6.786,1807.0,1806.6,0.59546979]
[1746647039859,6.786,1807.0,1806.9,5.53434058]
[1746647040039,6.31192569,1807.5,1806.9,6.08434058]
[1746647040201,5.53321092,1807.3,1806.9,0.60533917]
[1746647040406,5.53325507,1807.3,1806.9,8.53424465]
[1746647040606,5.53325507,1807.3,1807.0,0.85342447]
[1746647040806,5.53323957,1807.3,1807.0,0.85342447]
[1746647041101,5.53385112,1807.1,1806.8,0.8254]
[1746647041309,5.53385112,1807.1,1806.7,8.53480444]
[1746647041707,5.53299236,1807.4,1807.0,5.53393818]
[1746647041950,12.31899236,1807.4,1807.1,6.30789723]
[1746647042102,12.31899236,1807.4,1807.1,0.7742]
[1746647042319,5.53299236,1807.4,1807.1,0.7742]
[1746647042519,5.53315896,1807.3,1807.1,0.7742]
[1746647042755,5.5341948,1807.0,1806.8,0.7552]
[1746647043058,0.7502,1806.8,1806.2,5.53632001]
[1746647043256,5.53473886,1806.8,1806.4,5.53577602]
[1746647043471,5.53473886,1806.8,1806.3,6.08964634]
[1746647043620,5.53555551,1806.6,1806.3,0.553632]
[1746647043824,6.786,1807.0,1806.3,4.2404289]
[1746647044123,5.53543035,1806.6,1806.3,3.6867969]
[1746647044324,5.53543111,1806.6,1806.3,3.6867969]
[1746647044534,5.53587245,1806.4,1806.3,3.6867969]
[1746647045351,12.32177315,1806.5,1806.3,3.6867969]
[1746647045352,6.786,1806.5,1806.3,3.6867969]
[1746647045652,5.53414529,1807.0,1806.6,5.53519136]
[1746647045959,12.32074923,1807.1,1806.7,6.08829917]
[1746647046257,5.53464688,1806.8,1806.7,0.55351914]
[1746647046432,5.53438329,1806.9,1806.5,0.8303]
[1746647046627,5.53481183,1806.8,1806.5,0.8303]
[1746647046831,5.53481183,1806.8,1806.5,6.36584069]
[1746647047042,5.53481183,1806.8,1806.5,0.8303]
[1746647047229,5.53481183,1806.8,1806.5,1.34661311]
[1746647047439,5.53457931,1806.9,1806.5,2.94341063]
[1746647047758,5.53481722,1806.8,1806.5,2.94341063]
[1746647048324,5.53481722,1806.8,1806.5,0.51631311]
[1746647048325,5.53506946,1806.7,1806.5,0.51631311]
[1746647048527,5.5352596,1806.6,1806.5,0.51631311]
[1746647048849,5.53506946,1806.7,1806.3,9.05248317]
[1746647049056,5.53476297,1806.8,1806.3,0.51631311]
[1746647049057,5.53578883,1806.5,1806.3,0.51631311]
[1746647049354,5.53567909,1806.5,1806.3,0.51631311]
[1746647049555,6.34357245,1806.4,1806.3,0.51631311]
[1746647049759,5.53709856,1806.0,1805.9,0.51631311]
[1746647050151,5.53651556,1806.2,1805.9,0.51631311]
[1746647050318,5.53653826,1806.2,1805.9,1.12171394]
[1746647050524,5.53709856,1806.0,1805.9,0.51631311]
[1746647050825,5.53712011,1806.0,1805.7,0.05537819]
[1746647051164,5.53712011,1806.0,1805.6,9.32268648]
[1746647051165,5.53789477,1805.8,1805.6,0.7844]
[1746647051317,5.5375572,1805.9,1805.6,0.7844]
[1746647051524,5.53732243,1806.0,1805.6,12.30799305]
[1746647051759,6.788,1806.0,1805.7,5.59314816]
[1746647052763,5.53788439,1805.8,1805.6,1.64714288]
[1746647053266,5.53801849,1805.7,1805.6,1.64714288]
[1746647053480,5.53832521,1805.6,1805.5,3.6867969]
[1746647053969,12.32582545,1805.8,1805.5,0.42156542]
[1746647054172,12.32582545,1805.8,1805.4,6.08883236]
[1746647054327,5.5375403,1805.9,1805.5,6.08857431]
[1746647054527,6.789,1805.9,1805.4,1.29903134]
[1746647054763,5.53791131,1805.8,1805.4,3.0]
[1746647054957,5.53813595,1805.7,1805.4,0.05538333]
[1746647055162,5.53819738,1805.7,1805.4,0.55]
[1746647055359,5.53835698,1805.6,1805.4,0.55]
[1746647055534,12.32656126,1805.9,1805.4,0.55]
[1746647055867,0.7571,1805.8,1805.3,1.2284617]
[1746647056063,5.53941073,1805.3,1805.0,0.8037]
[1746647056262,5.53941342,1805.3,1805.0,0.8037]
[1746647056432,6.789,1805.6,1805.0,0.85909533]
[1746647056637,6.789,1805.6,1805.2,5.5393509]
[1746647056877,5.53952015,1805.3,1805.0,1.22904683]
[1746647057170,5.54004427,1805.1,1804.7,3.7257753]
[1746647057369,11.08020945,1805.1,1804.7,10.08851812]
[1746647057569,5.54004427,1805.1,1804.7,10.08851812]
[1746647057730,5.54029644,1805.0,1804.7,7.42956043]
[1746647057933,5.53885566,1805.5,1805.0,5.5401662]
[1746647058153,6.79,1805.4,1805.2,0.55]
[1746647058949,12.32896511,1805.4,1805.2,0.55]
[1746647059264,5.53930878,1805.3,1805.0,0.55]
[1746647059458,5.53965761,1805.2,1804.8,9.99907749]
[1746647059664,5.53965604,1805.2,1804.9,0.55]
[1746647059980,5.54031582,1805.0,1804.8,4.4584969]
[1746647060137,5.54047315,1804.9,1804.8,3.6867969]
[1746647060341,6.3550643,1805.3,1804.8,3.6867969]
[1746647060552,5.54047315,1804.9,1804.8,3.6867969]
[1746647060772,12.33147315,1804.9,1804.8,3.6867969]
[1746647061067,6.791,1804.9,1804.8,3.6867969]
[1746647061268,0.8158,1805.3,1804.8,4.05937443]
[1746647061479,6.791,1805.2,1804.9,0.60540175]
[1746647061686,12.33066737,1805.2,1804.9,0.55]
[1746647061884,5.53936963,1805.3,1804.9,6.09030945]
[1746647062176,25.49501051,1805.4,1804.9,0.55]
[1746647062177,5.53992993,1805.1,1804.9,0.55]
[1746647062376,5.5395524,1805.2,1804.8,0.7689]
[1746647062581,5.54030988,1805.0,1804.7,0.5889784]
[1746647062783,5.54030988,1805.0,1804.7,1.61927744]
[1746647062956,6.3640751,1805.3,1804.7,0.0389784]
[1746647062957,5.540665,1804.9,1804.7,0.0389784]
[1746647063146,12.331665,1804.9,1804.7,0.0389784]
[1746647063689,5.54078014,1804.8,1804.7,0.0389784]
[1746647064993,12.331665,1804.9,1804.7,0.0389784]
[1746647064994,6.791,1804.9,1804.7,0.0389784]
[1746647065290,12.33159175,1804.9,1804.7,0.0389784]
[1746647065450,5.54078014,1804.8,1804.7,0.0389784]
[1746647065652,12.33166592,1804.9,1804.7,0.0389784]
[1746647066112,5.54078014,1804.8,1804.7,0.0389784]
[1746647066478,6.791,1804.9,1804.7,0.0389784]
[1746647066749,6.793,1805.0,1804.7,0.09438704]
[1746647066988,12.33341205,1805.0,1804.7,0.0389784]
[1746647067192,12.3331977,1805.0,1804.7,0.0389784]
[1746647067480,5.54078014,1804.8,1804.7,0.0389784]
[1746647067683,5.54061595,1804.9,1804.7,0.0389784]
[1746647067992,6.793,1805.0,1804.9,1.358]
[1746647067993,6.708,1805.0,1804.9,1.358]
[1746647068149,6.708,1805.0,1804.8,0.05540834]
[1746647068150,6.708,1805.0,1804.8,0.55]
[1746647068350,0.7958,1805.5,1804.9,0.8036]
[1746647068654,6.708,1805.4,1805.1,0.55]
[1746647068855,5.53925712,1805.3,1804.9,5.54032783]
[1746647069093,12.24711807,1805.4,1805.0,6.09005204]
[1746647069249,12.24694397,1805.4,1805.1,6.31002218]
[1746647069455,12.24694397,1805.4,1805.1,0.7702]
[1746647069785,5.53985928,1805.1,1805.0,0.55]
[1746647069986,5.53973367,1805.2,1805.0,0.55]
[1746647070481,12.24737613,1805.3,1805.0,0.55]
[1746647070482,6.708,1805.3,1805.0,0.55]
[1746647070688,12.24737951,1805.3,1805.0,0.55]
[1746647070886,5.53963811,1805.2,1805.0,0.55]
[1746647071061,12.24737951,1805.3,1805.0,0.55]
[1746647071260,5.53957385,1805.2,1805.0,0.55]
[1746647071460,5.53957385,1805.2,1804.9,0.7702]
[1746647071673,6.708,1805.3,1804.7,0.818]
[1746647071958,11.08145076,1804.9,1804.7,0.818]
[1746647072172,6.708,1805.3,1804.5,6.56675497]
[1746647072173,5.54119792,1804.7,1804.5,1.23780668]
[1746647072375,5.54139421,1804.6,1804.5,0.41980668]
[1746647072573,6.708,1804.8,1804.2,6.36052609]
[1746647072779,6.708,1804.7,1804.4,5.54191583]
[1746647072965,6.708,1804.7,1804.3,0.63605261]
[1746647073178,6.708,1804.7,1804.2,0.818]
[1746647073179,5.54126647,1804.7,1804.2,0.818]
[1746647073505,5.54007527,1805.1,1804.8,0.55]
[1746647073791,5.54011018,1805.1,1804.7,6.09097099]
[1746647073957,5.54035153,1805.0,1804.7,0.55]
[1746647074151,6.708,1805.3,1804.7,0.60540443]
[1746647074358,12.24742134,1805.3,1805.0,0.55]
[1746647074794,5.53971154,1805.2,1805.0,0.55]
[1746647074959,6.708,1805.3,1804.8,3.55]
[1746647075151,5.54047315,1804.9,1804.7,0.9730878]
[1746647075353,5.53966905,1805.2,1804.8,6.09059024]
[1746647075550,5.53913939,1805.4,1804.8,6.30918014]
[1746647075755,0.8213,1805.6,1805.1,0.55]
[1746647076011,6.709,1805.5,1805.2,0.7945]
[1746647076185,6.709,1805.5,1805.0,0.7945]
[1746647076495,12.24783685,1805.5,1805.0,0.98484764]
[1746647076697,12.24783685,1805.5,1805.1,6.36884364]
[1746647076895,12.24783685,1805.5,1805.2,0.55]
[1746647076896,6.709,1805.5,1805.2,0.55]
[1746647077112,5.53880633,1805.5,1805.2,0.55]
[1746647077315,5.53733183,1806.0,1805.6,6.34964675]
[1746647077597,7.5249,1806.1,1805.6,0.8114]
[1746647077794,5.53840721,1805.6,1805.4,1.3614]
[1746647077999,5.53843394,1805.6,1805.4,0.8114]
[1746647078503,5.53863195,1805.5,1805.2,4.3687]
[1746647078799,5.53924555,1805.3,1805.0,0.37945]
[1746647079102,5.53915069,1805.4,1805.0,5.54012545]
[1746647079402,5.53915069,1805.4,1805.1,0.55]
[1746647079572,5.53924873,1805.3,1805.1,0.55]
[1746647079770,0.8147,1805.6,1805.1,0.55]
[1746647079771,12.24634318,1805.6,1805.4,0.8187]
[1746647079964,12.24634318,1805.6,1805.1,0.8187]
[1746647079965,6.708,1805.6,1805.1,0.8187]
[1746647080166,12.2464558,1805.6,1805.1,3.8187]
[1746647080361,5.53813339,1805.7,1805.3,5.5390001]
[1746647080565,6.708,1805.6,1805.3,5.5390001]
[1746647080797,6.708,1805.6,1805.3,5.59450536]
[1746647081140,5.53836759,1805.6,1805.3,1.16838916]
[1746647081291,5.53832531,1805.6,1805.3,6.70752855]
[1746647081463,5.53832531,1805.6,1805.3,1.16838916]
[1746647081804,12.24625092,1805.7,1805.3,6.70762107]
[1746647081805,12.2461614,1805.7,1805.3,6.70762107]
[1746647081980,5.53844023,1805.6,1805.3,1.16838916]
[1746647082377,5.53908561,1805.4,1805.2,0.55]
[1746647083398,5.53895571,1805.4,1805.2,0.55]
[1746647083701,5.53924555,1805.3,1805.0,3.0]
[1746647083907,5.53955917,1805.2,1804.9,0.7728]
[1746647084196,5.53969109,1805.2,1804.9,3.7728]
[1746647084408,5.53969109,1805.2,1804.7,0.4230878]
[1746647084409,5.5401662,1805.0,1804.7,0.4230878]
[1746647084705,6.708,1805.2,1804.8,5.54077669]
[1746647084706,12.24768303,1805.2,1804.8,5.54077669]
[1746647084860,5.53909471,1805.4,1804.9,5.59570087]
[1746647085059,12.24742654,1805.3,1805.0,0.55]
[1746647085300,5.53963291,1805.2,1805.0,0.55]
[1746647085488,12.24742654,1805.3,1805.0,0.55]
[1746647085688,5.53974283,1805.2,1805.0,0.55]
[1746647085986,12.24742654,1805.3,1804.9,0.05540244]
[1746647086187,6.708,1805.3,1804.9,0.05540244]
[1746647086390,5.53941742,1805.3,1804.8,6.14599889]
[1746647086705,5.53912091,1805.4,1805.0,0.55]
[1746647087009,6.29262091,1805.4,1805.0,0.55]
[1746647087164,5.53934718,1805.3,1805.0,0.55]
[1746647087361,5.53934718,1805.3,1804.9,6.35421784]
[1746647087590,6.29262954,1805.4,1805.0,5.54016591]
[1746647087890,11.83184291,1805.4,1805.0,5.54016591]
[1746647088091,25.49908072,1805.7,1805.3,5.53921189]
[1746647088092,25.49922497,1805.7,1805.3,5.53921189]
[1746647088309,12.24591642,1805.8,1805.3,0.8061]
[1746647088606,5.53833907,1805.6,1805.3,0.8061]
[1746647088807,12.24589089,1805.8,1805.3,0.8061]
[1746647089002,5.53802528,1805.7,1805.3,6.34505951]
[1746647089209,5.53819505,1805.7,1805.3,6.34505951]
[1746647089372,12.24584221,1805.8,1805.4,5.53893107]
[1746647089566,12.24584221,1805.8,1805.5,0.55]
[1746647089774,6.708,1805.8,1805.5,6.14374919]
[1746647090310,5.53893873,1805.4,1805.3,0.8061]
[1746647090494,7.5283,1805.8,1805.0,6.72946602]
[1746647090495,13.06615557,1805.8,1805.1,0.7986]
[1746647090705,5.53884659,1805.5,1805.1,0.7986]
[1746647091010,5.53884659,1805.5,1804.7,0.42246024]
[1746647091011,5.54000229,1805.1,1804.9,0.7986]
[1746647091217,12.24742944,1805.3,1804.8,0.72470888]
[1746647091420,5.53956866,1805.2,1804.8,6.32071436]
[1746647091599,5.53992452,1805.1,1804.8,0.72470888]
[1746647091910,11.08016086,1805.1,1804.7,6.75315119]
[1746647092082,5.54001293,1805.1,1804.7,1.21226024]
[1746647092286,5.53970771,1805.2,1804.9,3.6867969]
[1746647092617,5.53986541,1805.1,1804.9,3.6867969]
[1746647092775,5.53970367,1805.2,1804.9,3.6867969]
[1746647092975,5.53987765,1805.1,1804.9,3.6867969]
[1746647093382,0.7535,1805.3,1804.9,3.6867969]
[1746647093587,5.53997623,1805.1,1804.9,3.6867969]
[1746647094411,5.53967769,1805.2,1804.9,3.6867969]
[1746647094617,5.53955824,1805.2,1804.9,3.6867969]
[1746647094910,5.53939835,1805.3,1804.9,9.59572257]
[1746647095110,6.708,1805.4,1805.1,5.53983703]
[1746647095312,12.24705063,1805.4,1805.0,6.0900209]
[1746647095491,6.708,1805.4,1805.1,5.53975916]
[1746647095814,6.708,1805.4,1805.0,6.09004345]
[1746647095815,12.24703029,1805.4,1805.0,6.09004345]
[1746647096123,12.24703029,1805.4,1805.0,1.74990156]
[1746647096326,6.708,1805.4,1805.1,6.34986419]
[1746647096504,12.24679997,1805.5,1805.2,0.55]
[1746647096708,5.53911267,1805.4,1805.1,6.34995043]
[1746647096910,5.53911267,1805.4,1805.1,0.8101]
[1746647097232,6.708,1805.5,1805.1,0.8101]
[1746647097433,5.53905319,1805.4,1805.1,0.8101]
[1746647097621,5.53898297,1805.4,1805.1,6.34983455]
[1746647097808,6.708,1805.5,1805.1,0.8101]
[1746647098012,5.5395524,1805.2,1805.1,0.8101]
[1746647098335,5.53985928,1805.1,1805.0,0.55]
[1746647098540,5.53985928,1805.1,1804.8,3.6867969]
[1746647098748,5.53967639,1805.2,1804.8,9.90105927]
[1746647099050,5.53967639,1805.2,1804.8,9.90104747]
[1746647099556,5.53955863,1805.2,1804.9,0.55]
[1746647099863,6.34387381,1805.5,1805.1,1.3482]
[1746647100035,6.655,1805.4,1805.1,1.3482]
[1746647100225,12.19408203,1805.4,1805.1,2.59102518]
[1746647100555,5.53904091,1805.4,1805.1,2.04102518]
[1746647100718,5.53940726,1805.3,1805.1,0.7982]
[1746647100919,25.49928117,1806.0,1805.5,6.32682415]
[1746647101230,26.617,1806.0,1805.3,0.789]
[1746647101576,5.53863195,1805.5,1805.4,0.51743627]
[1746647101778,12.96863195,1805.5,1805.4,0.51743627]
[1746647102069,5.53995624,1805.1,1804.9,0.789]
[1746647102214,7.43,1805.5,1805.1,5.53975171]
[1746647102414,7.43,1805.5,1804.9,0.84440102]
[1746647102415,5.5375202,1805.9,1805.5,0.55]
[1746647102654,5.53781243,1805.8,1805.5,0.55]
[1746647102817,5.53806299,1805.7,1805.6,0.51755408]
[1746647103017,0.7912,1806.6,1805.7,0.55]
[1746647103220,5.53606752,1806.4,1806.0,6.08701144]
[1746647103440,5.53740517,1805.9,1805.8,1.31915408]
[1746647103714,5.5365009,1806.2,1805.8,1.31915408]
[1746647103715,5.53661473,1806.2,1805.8,1.31915408]
[1746647103952,5.5369631,1806.1,1805.9,0.51712101]
[1746647104154,7.4462,1806.6,1806.0,0.55]
[1746647104363,5.53641004,1806.3,1806.0,0.55]
[1746647104661,5.53750861,1805.9,1805.7,0.41514418]
[1746647104817,0.8193,1806.4,1805.8,6.08754268]
[1746647105017,6.35525946,1806.4,1806.0,5.53696214]
[1746647105217,5.53612283,1806.4,1806.1,1.34385302]
[1746647105418,6.655,1806.6,1806.1,0.51665302]
[1746647105419,12.19026722,1806.6,1806.1,0.51665302]
[1746647105620,5.53537347,1806.6,1806.3,0.7601]
[1746647105843,5.5352596,1806.6,1806.3,1.45028044]
[1746647106055,5.53978911,1806.8,1806.5,0.55]
[1746647106264,5.53504323,1806.7,1806.3,0.7601]
[1746647106465,5.53504323,1806.7,1805.9,0.7838]
[1746647106466,5.53648652,1806.2,1805.9,0.7838]
[1746647106763,5.53556601,1806.5,1805.9,0.7838]
[1746647106764,5.53690451,1806.1,1805.9,0.7838]
[1746647106932,5.53801849,1805.7,1805.6,3.6867969]
[1746647107566,6.31411181,1805.8,1805.6,3.6867969]
[1746647107567,5.53782359,1805.8,1805.6,3.6867969]
[1746647107783,5.53801849,1805.7,1805.6,3.6867969]
[1746647107937,5.53748626,1805.9,1805.6,4.05547659]
[1746647108266,10.74656315,1806.7,1805.6,4.05547659]
[1746647108267,19.959,1806.5,1806.0,5.53689616]
[1746647108474,5.53562402,1806.5,1806.1,6.0866137]
[1746647108681,12.1893793,1806.6,1806.2,5.53643751]
[1746647108982,5.53978067,1806.8,1806.4,6.08586657]
[1746647109132,5.53583188,1806.5,1806.3,0.7774]
[1746647109326,5.53583188,1806.5,1806.1,3.0]
[1746647109327,5.53583188,1806.5,1806.0,1.3182]
[1746647109630,5.5363593,1806.3,1806.0,1.3182]
[1746647109967,5.5356928,1806.5,1806.1,9.0867891]
[1746647110266,5.53964758,1806.8,1806.2,5.59180206]
[1746647110267,5.53529508,1806.6,1806.2,5.59180206]
[1746647110474,5.53529508,1806.6,1806.4,0.55]
[1746647110669,5.53587245,1806.4,1806.3,0.51508508]
[1746647110854,5.53678499,1806.2,1806.0,4.83328508]
[1746647111032,5.53679198,1806.1,1806.0,1.28328508]
[1746647111261,5.53666517,1806.2,1806.0,0.7682]
[1746647111466,5.53597474,1806.4,1806.0,0.7682]
[1746647111665,5.53529257,1806.6,1806.1,0.55]
[1746647111966,5.53529257,1806.6,1806.0,0.7682]
[1746647111967,5.53648543,1806.2,1806.0,0.7682]
[1746647112167,5.53679198,1806.1,1806.0,1.3182]
[1746647112670,5.53740517,1805.9,1805.8,3.7626]
[1746647112868,5.53721983,1806.0,1805.8,4.17957687]
[1746647113072,5.53633932,1806.3,1805.9,6.1426526]
[1746647113372,5.53649327,1806.2,1806.1,0.55]
[1746647114302,5.53634182,1806.3,1806.1,0.55]
[1746647114603,12.19368165,1806.8,1806.1,6.14203884]
[1746647114604,5.53581203,1806.5,1806.1,6.14203884]
[1746647114783,5.53606251,1806.4,1806.3,0.55]
[1746647115299,5.53617892,1806.3,1806.2,0.61420388]
[1746647115703,5.53628312,1806.3,1806.1,0.55]
[1746647116016,5.53529103,1806.6,1806.0,1.27730814]
[1746647116183,5.53679198,1806.1,1806.0,0.51470814]
[1746647116522,5.53679198,1806.1,1805.4,20.94017757]
[1746647116523,5.53832521,1805.6,1805.5,0.5147501]
[1746647116726,5.53809062,1805.7,1805.4,0.7733]
[1746647117015,5.53834125,1805.6,1805.4,0.7733]
[1746647117178,5.53838542,1805.6,1805.4,2.28547856]
[1746647117363,0.7949,1806.2,1805.7,0.55]
[1746647117567,5.53755826,1805.9,1805.7,0.55]
[1746647117770,5.53771181,1805.8,1805.5,0.55]
[1746647117992,5.53728533,1806.0,1805.6,5.53815141]
[1746647118207,5.53668758,1806.2,1805.8,1.3038]
[1746647118412,6.652,1806.5,1805.9,8.53725182]
[1746647118566,6.652,1806.5,1806.1,0.55]
[1746647118783,6.652,1806.5,1806.1,1.3111]
[1746647118982,5.53629724,1806.3,1806.1,1.3111]
[1746647119283,5.53707189,1806.1,1805.9,0.55]
[1746647119781,5.53740517,1805.9,1805.8,1.30891048]
[1746647120004,11.07510675,1805.9,1805.6,3.7944]
[1746647120207,5.53771181,1805.8,1805.7,0.37944]
[1746647120407,5.53771181,1805.8,1805.6,0.7944]
[1746647120579,5.53771181,1805.8,1805.7,0.55]
[1746647120795,5.53832521,1805.6,1805.5,3.6867969]
[1746647121823,5.53816307,1805.7,1805.5,3.6867969]
[1746647122121,5.53832521,1805.6,1805.5,3.6867969]
[1746647122626,6.31304227,1805.9,1805.4,0.60538564]
[1746647122627,5.53783073,1805.8,1805.4,0.60538564]
[1746647122788,5.53802774,1805.7,1805.4,6.14422884]
[1746647122986,5.53863195,1805.5,1805.4,0.60538564]
[1746647123190,5.53842414,1805.6,1805.4,0.55]
[1746647123391,5.53792165,1805.8,1805.4,6.08882169]
[1746647123617,5.53801924,1805.7,1805.5,0.60888217]
[1746647123923,5.53835301,1805.6,1805.4,1.0652231]
[1746647124129,5.53863195,1805.5,1805.4,0.5152231]
[1746647124323,5.53905397,1805.4,1805.1,4.4938969]
[1746647124532,6.30362842,1805.7,1805.1,4.4938969]
[1746647124533,5.5395524,1805.2,1805.1,3.6867969]
[1746647124827,5.5390492,1805.4,1805.1,3.6867969]
[1746647124994,6.652,1805.5,1805.1,4.05547659]
[1746647125327,5.53767174,1805.9,1805.5,6.08860322]
[1746647125328,5.5375167,1805.9,1805.5,6.08860322]
[1746647125631,5.53679198,1806.1,1805.6,6.84722263]
[1746647125800,5.53762825,1805.9,1805.6,4.309]
[1746647126004,5.53762825,1805.9,1805.6,9.84730065]
[1746647126199,5.53695645,1806.1,1805.7,0.98473006]
[1746647126416,12.18860128,1806.2,1805.8,6.08754133]
[1746647126725,6.652,1806.2,1805.8,0.55]
[1746647126898,5.53740517,1805.9,1805.7,0.98473006]
[1746647127099,11.07632335,1805.7,1805.4,3.0]
[1746647127302,6.28882653,1806.0,1805.4,3.93650281]
[1746647127499,5.53794463,1805.8,1805.4,9.53082022]
[1746647127712,0.7517,1806.0,1805.4,0.99188639]
[1746647127923,5.53828388,1805.7,1805.4,0.05538358]
[1746647128332,5.53828388,1805.7,1805.5,3.0]
[1746647128532,5.53883701,1805.5,1805.3,0.8259]
[1746647128829,5.53869192,1805.5,1805.3,0.8259]
[1746647129624,5.53795371,1805.8,1805.2,0.55]
[1746647129819,5.53859834,1805.6,1805.2,0.54026766]
[1746647130045,5.53851609,1805.6,1805.2,0.54026766]
[1746647130219,5.53844055,1805.6,1805.2,6.62966289]
[1746647130520,5.53868146,1805.5,1805.2,6.62966289]
[1746647130738,5.53868146,1805.5,1805.2,1.09026766]
[1746647130939,5.53863326,1805.5,1805.2,6.62981037]
[1746647131119,5.53863326,1805.5,1805.3,0.66298104]
[1746647131326,5.53845089,1805.6,1805.3,0.55]
[1746647131523,5.53806814,1805.7,1805.3,0.55]
[1746647131859,5.53665914,1806.2,1805.9,0.8066]
[1746647132003,5.53703521,1806.1,1805.9,0.8066]
[1746647132198,5.53784101,1805.8,1805.6,0.8066]
[1746647132447,5.53801849,1805.7,1805.4,3.0]
[1746647132643,5.53801849,1805.7,1805.5,0.3]
[1746647132839,5.53709856,1806.0,1805.3,0.8051]
[1746647133043,5.53837947,1805.6,1805.3,0.8051]
[1746647133253,5.53834576,1805.6,1805.3,6.34422987]
[1746647133459,5.53834576,1805.6,1805.4,0.63442299]
[1746647133624,5.53740746,1805.9,1805.3,0.8051]
[1746647133939,5.53999472,1805.1,1804.9,3.6867969]
[1746647134141,5.54029422,1805.0,1804.9,3.6867969]
[1746647134912,5.53971672,1805.2,1804.9,3.6867969]
[1746647135127,12.26238368,1805.3,1804.9,3.6867969]
[1746647135128,6.723,1805.3,1804.9,3.6867969]
[1746647135337,6.723,1805.3,1804.9,4.09738974]
[1746647135521,5.5401662,1805.0,1804.9,3.6867969]
[1746647135816,5.54013611,1805.1,1804.9,3.6867969]
[1746647136016,5.5401662,1805.0,1804.9,3.6867969]
[1746647136355,5.53996821,1805.1,1804.9,3.6867969]
[1746647136563,5.53996821,1805.1,1804.8,0.55]
[1746647136564,5.54036167,1805.0,1804.8,0.55]
[1746647136758,0.7501,1805.2,1804.8,0.55]
[1746647137068,5.54039163,1805.0,1804.8,0.55]
[1746647137862,5.54039768,1805.0,1804.8,0.55]
[1746647138064,5.5405858,1804.9,1804.6,0.7831]
[1746647138271,5.54108716,1804.7,1804.6,0.7831]
[1746647138467,5.54060846,1804.9,1804.6,0.7831]
[1746647138628,5.54078385,1804.8,1804.6,0.7831]
[1746647138824,11.08183683,1804.8,1804.4,9.307888]
[1746647139041,5.5417013,1804.5,1804.4,0.766]
[1746647139331,5.54188327,1804.5,1804.2,3.6867969]
[1746647139565,5.54231557,1804.3,1804.2,3.6867969]
[1746647140075,5.76733544,1804.3,1804.2,3.6867969]
[1746647140357,5.76733544,1804.3,1804.2,0.36867969]
[1746647140526,5.76733544,1804.3,1804.1,3.6867969]
[1746647141161,0.22501987,1804.3,1804.1,3.6867969]
[1746647141547,5.54212534,1804.4,1804.1,3.6867969]
[1746647141771,0.22501987,1804.2,1804.1,6.6867969]
[1746647142421,5.54219179,1804.4,1804.1,6.6867969]
[1746647142762,5.76737365,1804.3,1804.1,7.90978582]
[1746647142944,0.22501987,1804.3,1804.1,7.90978582]
[1746647143333,5.54220539,1804.4,1804.1,8.31731632]
[1746647143662,6.36530129,1804.7,1804.1,8.31731632]
[1746647143663,5.5405906,1804.9,1804.6,0.55]
[1746647144331,0.7699,1805.1,1804.4,6.09185992]
[1746647144522,5.54139421,1804.6,1804.3,0.8167]
[1746647144724,5.5416303,1804.6,1804.3,0.8167]
[1746647144934,5.54059272,1804.9,1804.2,0.55]
[1746647144935,5.54200842,1804.4,1804.2,0.55]
[1746647145171,5.54262276,1804.2,1804.1,0.4075305]
[1746647145379,5.54218192,1804.4,1803.8,1.0833243]
[1746647145685,5.54187038,1804.5,1803.9,0.05542607]
[1746647145981,5.54226156,1804.4,1804.0,0.55]
[1746647146151,5.54226156,1804.4,1804.2,0.55]
[1746647146341,5.5428293,1804.2,1804.0,3.0]
[1746647146538,7.5182,1804.7,1803.9,0.63501954]
[1746647146539,0.19874496,1804.3,1803.9,0.63501954]
[1746647146740,5.54338742,1804.0,1803.9,0.42064939]
[1746647146989,5.54311365,1804.1,1803.8,0.2676243]
[1746647147194,0.7924,1804.8,1803.9,3.8283]
[1746647147346,12.26813831,1804.7,1804.0,0.55]
[1746647147694,5.54173828,1804.5,1804.2,0.55]
[1746647147853,6.727,1804.7,1804.4,0.55]
[1746647148053,5.54161889,1804.6,1804.4,0.97422762]
[1746647148243,5.5417013,1804.5,1804.4,0.42422762]
[1746647148449,5.54205343,1804.4,1804.2,0.55]
[1746647148649,11.08390511,1804.5,1804.2,0.55]
[1746647148958,5.54201993,1804.4,1804.1,0.7964]
[1746647149154,5.54211102,1804.4,1804.1,0.7964]
[1746647149476,5.5424979,1804.3,1804.1,1.49088572]
[1746647149680,5.54262276,1804.2,1803.9,3.8231]
[1746647150149,5.54248777,1804.3,1803.9,3.8231]
[1746647150345,5.54323725,1804.0,1803.9,0.41461634]
[1746647150583,5.54354454,1803.9,1803.8,0.2676243]
[1746647150769,5.54354454,1803.9,1803.8,0.8176243]
[1746647151077,5.54338497,1804.0,1803.8,0.8176243]
[1746647151279,6.727,1804.2,1803.8,0.2676243]
[1746647151280,5.5431171,1804.1,1803.8,0.2676243]
[1746647151454,5.5431171,1804.1,1803.8,0.84879274]
[1746647151658,5.5431171,1804.1,1803.8,0.2676243]
[1746647151977,11.08629424,1804.1,1803.8,0.2676243]
[1746647152176,6.727,1804.2,1803.8,0.2676243]
[1746647152381,5.54324304,1804.0,1803.8,0.2676243]
[1746647152598,5.54247317,1804.3,1803.9,6.09346519]
[1746647152758,6.727,1804.4,1804.0,0.60934652]
[1746647152954,5.54263731,1804.2,1804.0,1.43794652]
[1746647153288,5.54292999,1804.1,1804.0,0.8286]
[1746647153586,5.54304586,1804.1,1803.9,0.41696251]
[1746647153747,5.5424491,1804.3,1803.9,0.60543411]
[1746647153949,5.5424491,1804.3,1803.9,6.14891862]
[1746647154146,0.7627,1804.6,1803.9,3.60543411]
[1746647154350,5.54152713,1804.6,1804.3,6.09227061]
[1746647154571,5.54127296,1804.7,1804.3,6.09227061]
[1746647154773,6.728,1804.9,1804.4,6.35984023]
[1746647154978,5.54130423,1804.7,1804.4,0.8179]
[1746647155189,6.728,1804.9,1804.4,0.8179]
[1746647155354,0.8266,1804.7,1804.1,0.8175]
[1746647155558,5.54244595,1804.3,1804.1,0.55]
[1746647155968,5.5417013,1804.5,1804.0,0.36054341]
[1746647156191,5.54192247,1804.5,1804.1,5.54271591]
[1746647156414,0.8266,1804.7,1804.4,5.54200781]
[1746647156415,6.36782731,1804.7,1804.4,5.54200781]
[1746647156559,5.54122731,1804.7,1804.4,0.55]
[1746647156892,7.5196,1804.9,1804.4,6.14737309]